[Event "DVM U14 2021"]
[Site "Willingen"]
[Date "2022.08.14"]
[Round "3"]
[White "Lichtinger, Simon"]
[Black "Herfurt, Manuel"]
[Result "1-0"]
[ECO "C00"]
[WhiteElo "1473"]
[BlackElo "1656"]
[Annotator "NA RC"]
[PlyCount "81"]
[EventDate "2022.08.12"]
[EventType "team-tourn"]
[EventRounds "7"]
[EventCountry "GER"]
[SourceTitle "playchess.com"]
[Source "ChessBase"]
[SourceQuality "1"]
[TimeControl "40/5400+30:1800+30"]

1. Nf3 {[%emt 0:00:03]} d5 {[%emt 0:00:06]} 2. g3 {[%emt 0:00:03]} c5 {[%emt 0:00:19]} 3. Bg2 {[%emt 0:00:03]} Nf6 {[%emt 0:00:29]} 4. d3 {[%emt 0:00:04]} Nc6 {[%emt 0:01:30]} 5. O-O {[%emt 0:00:05]} e6 {[%emt 0:01:08]} 6. Nbd2 {[%emt 0:00:06]} Be7 {[%emt 0:01:06]} 7. e4 {[%emt 0:00:17]} dxe4 {[%emt 0:00:56]} 8. dxe4 {[%emt 0:00:07]} O-O {[%emt 0:01:10]} 9. Qe2 {[%emt 0:02:20]} Qc7 {[%emt 0:08:03]} 10. e5 {[%emt 0:11:18]} Nd5 {[%emt 0:02:42]} 11. c3 {[%emt 0:01:41]} Rd8 {[%emt 0:06:09]} 12. Re1 {[%emt 0:04:05]} Bd7 {[%emt 0:05:27]} 13. Nf1 {[%emt 0:01:07]} h6 {[%emt 0:03:30]} 14. h4 {[%emt 0:09:03]} Bf8 {[%emt 0:11:14]} 15. N1h2 {[%emt 0:07:48]} Nce7 {[%emt 0:10:00]} 16. h5 {[%emt 0:02:24]} Bc6 {[%emt 0:03:52]} 17. g4 {[%emt 0:08:36]} Kh8 {[%emt 0:08:01]} 18. g5 {[%emt 0:05:51]} Ng8 {[%emt 0:03:16]} 19. Ng4 {[%emt 0:04:50]} Qe7 {[%emt 0:04:15]} 20. Kh2 {[%emt 0:05:13]} Qe8 {[%emt 0:03:56]} 21. Nh4 {[%emt 0:07:41]} Nde7 {[%emt 0:03:43]} 22. gxh6 {[%emt 0:05:17]} Nxh6 {[%emt 0:01:11]} 23. Nxh6 {[%emt 0:01:36]} gxh6 {[%emt 0:00:06]} 24. Rg1 {[%emt 0:01:28]} Bg7 {[%emt 0:02:48]} 25. Bf4 {[%emt 0:02:44]} Nd5 {[%emt 0:03:26]} 26. Bxd5 {[%emt 0:00:56]} Bxd5 {[%emt 0:01:05]} 27. Qg4 {[%emt 0:00:32]} Qf8 {[%emt 0:01:57]} 28. Rg3 {[%emt 0:02:03]} Kh7 {[%emt 0:00:17]} 29. Rag1 {[%emt 0:00:34]} Bh8 {[%emt 0:00:11]} 30. Ng6 {[%emt 0:01:28]} Qg7 {[%emt 0:01:13]} 31. Nxh8 {[%emt 0:00:41]} Qxg4 {[%emt 0:00:55]} 32. Rxg4 {[%emt 0:00:04]} Kxh8 {[%emt 0:00:10]} 33. Bxh6 {[%emt 0:01:27]} Rg8 {[%emt 0:00:31]} 34. Bg7+ {[%emt 0:03:05]} Kh7 {[%emt 0:00:08]} 35. h6 {[%emt 0:00:12]} Bxa2 {[%emt 0:00:35]} 36. Rf4 {[%emt 0:00:32]} b6 {[%emt 0:03:45]} 37. Rxf7 {[%emt 0:00:07]} Bb3 {[%emt 0:02:08]} 38. Bf8+ {[%emt 0:01:55]} Kh8 {[%emt 0:00:10]} 39. Rxg8+ {[%emt 0:02:55]} Kxg8 {[%emt 0:00:06]} 40. h7+ {[%emt 0:00:23]} Kh8 {[%emt 0:00:28]} 41. Be7 {[%emt 0:30:19]} 1-0

[Event "DVM U14 2021"]
[Site "Willingen"]
[Date "2022.08.14"]
[Round "3"]
[White "Fock, Madiha"]
[Black "Keck, Johannes"]
[Result "1-0"]
[ECO "B47"]
[WhiteElo "1472"]
[BlackElo "1310"]
[Annotator "NA RC"]
[PlyCount "51"]
[EventDate "2022.08.12"]
[EventType "team-tourn"]
[EventRounds "7"]
[EventCountry "GER"]
[SourceTitle "playchess.com"]
[Source "ChessBase"]
[SourceQuality "1"]
[TimeControl "40/5400+30:1800+30"]

1. e4 {[%emt 0:00:01]} c5 {[%emt 0:01:15]} 2. Nf3 {[%emt 0:00:06]} e6 {[%emt 0:00:25]} 3. d4 {[%emt 0:00:10]} cxd4 {[%emt 0:00:22]} 4. Nxd4 {[%emt 0:00:09]} Nc6 {[%emt 0:00:28]} 5. Nc3 {[%emt 0:01:39]} Qc7 {[%emt 0:01:03]} 6. Nxc6 {[%emt 0:06:23]} bxc6 {[%emt 0:03:32]} 7. Bd3 {[%emt 0:07:37]} d5 {[%emt 0:13:06]} 8. exd5 {[%emt 0:06:57]} cxd5 {[%emt 0:00:46]} 9. O-O {[%emt 0:03:25]} Nf6 {[%emt 0:05:48]} 10. Nb5 {[%emt 0:06:32]} Qb8 {[%emt 0:07:02]} 11. Re1 {[%emt 0:08:39]} a6 {[%emt 0:09:05]} 12. Nd4 {[%emt 0:05:44]} Bd6 {[%emt 0:09:09]} 13. h3 {[%emt 0:04:04]} O-O {[%emt 0:04:03]} 14. c3 {[%emt 0:06:30]} h6 {[%emt 0:08:33]} 15. Qc2 {[%emt 0:03:10]} Bc5 {[%emt 0:05:22]} 16. Nf3 {[%emt 0:07:36]} Bd6 {[%emt 0:05:36]} 17. b3 {[%emt 0:09:59]} Bb7 {[%emt 0:09:32]} 18. Bb2 {[%emt 0:02:07]} Qc7 {[%emt 0:01:43]} 19. Rad1 {[%emt 0:01:19]} Rac8 {[%emt 0:01:22]} 20. Nd4 {[%emt 0:00:53]} Rfe8 {[%emt 0:03:46]} 21. Qe2 {[%emt 0:02:15]} Nd7 {[%emt 0:03:01]} 22. Nf3 {[%emt 0:02:11]} Nc5 {[%emt 0:02:16]} 23. Bb1 {[%emt 0:01:29]} Be7 {[%emt 0:01:20]} 24. b4 {[%emt 0:02:52]} Na4 {[%emt 0:00:27]} 25. Qc2 {[%emt 0:00:09]} Nxb2 {[%emt 0:00:24]} 26. Qh7+ {[%emt 0:00:07]} 1-0

[Event "DVM U14 2021"]
[Site "Willingen"]
[Date "2022.08.14"]
[Round "3"]
[White "Grozea, Nicolae Theodor"]
[Black "Wedekind, Ferdinand"]
[Result "1/2-1/2"]
[ECO "C48"]
[WhiteElo "1467"]
[BlackElo "1446"]
[Annotator "NA RC"]
[PlyCount "90"]
[EventDate "2022.08.12"]
[EventType "team-tourn"]
[EventRounds "7"]
[EventCountry "GER"]
[SourceTitle "playchess.com"]
[Source "ChessBase"]
[SourceQuality "1"]
[TimeControl "40/5400+30:1800+30"]

1. e4 {[%emt 0:00:02]} e5 {[%emt 0:00:05]} 2. Nf3 {[%emt 0:00:05]} Nc6 {[%emt 0:00:06]} 3. Nc3 {[%emt 0:00:04]} Nf6 {[%emt 0:00:07]} 4. Bb5 {[%emt 0:00:05]} Nd4 {[%emt 0:00:31]} 5. Nxd4 {[%emt 0:10:23]} exd4 {[%emt 0:00:09]} 6. e5 {[%emt 0:00:05]} dxc3 {[%emt 0:00:18]} 7. exf6 {[%emt 0:00:09]} Qxf6 {[%emt 0:00:07]} 8. dxc3 {[%emt 0:00:07]} Bc5 {[%emt 0:01:32]} 9. Qe2+ {[%emt 0:04:25]} Qe6 {[%emt 0:00:23]} 10. Bc4 {[%emt 0:08:22]} Qxe2+ {[%emt 0:03:22]} 11. Bxe2 {[%emt 0:00:12]} O-O {[%emt 0:00:47]} 12. O-O {[%emt 0:00:50]} b6 {[%emt 0:06:34]} 13. Bf3 {[%emt 0:06:25]} Ba6 {[%emt 0:11:02]} 14. Re1 {[%emt 0:08:47]} Rae8 {[%emt 0:05:00]} 15. Bf4 {[%emt 0:03:58]} c6 {[%emt 0:08:49]} 16. Bg4 {[%emt 0:13:23]} Bc8 {[%emt 0:15:45]} 17. Rad1 {[%emt 0:07:26]} Rxe1+ {[%emt 0:13:20]} 18. Rxe1 {[%emt 0:00:14]} a5 {[%emt 0:01:49]} 19. a3 {[%emt 0:03:53]} d5 {[%emt 0:04:35]} 20. Bxc8 {[%emt 0:17:23]} Rxc8 {[%emt 0:00:08]} 21. b4 {[%emt 0:00:48]} Bf8 {[%emt 0:07:45]} 22. Be3 {[%emt 0:02:11]} Rb8 {[%emt 0:02:23]} 23. Bf4 {[%emt 0:02:57]} Rc8 {[%emt 0:01:16]} 24. Rd1 {[%emt 0:03:52]} a4 {[%emt 0:03:10]} 25. Kf1 {[%emt 0:02:37]} Re8 {[%emt 0:02:45]} 26. Bc7 {[%emt 0:00:56]} b5 {[%emt 0:00:21]} 27. Bb6 {[%emt 0:00:16]} g6 {[%emt 0:01:03]} 28. Bd4 {[%emt 0:00:32]} Bg7 {[%emt 0:01:30]} 29. f3 {[%emt 0:00:42]} f5 {[%emt 0:02:31]} 30. Kf2 {[%emt 0:00:23]} Kf7 {[%emt 0:00:43]} 31. h3 {[%emt 0:00:39]} h6 {[%emt 0:00:57]} 32. Rd2 {[%emt 0:01:49]} Bf6 {[%emt 0:01:39]} 33. Rd1 {[%emt 0:00:13]} Bh4+ {[%emt 0:00:38]} 34. g3 {[%emt 0:00:18]} Bf6 {[%emt 0:00:15]} 35. Rd2 {[%emt 0:01:12]} Re7 {[%emt 0:00:57]} 36. Rd3 {[%emt 0:00:49]} Re8 {[%emt 0:00:15]} 37. Re3 {[%emt 0:00:52]} Re6 {[%emt 0:02:02]} 38. Rxe6 {[%emt 0:00:47]} Kxe6 {[%emt 0:00:08]} 39. Ke3 {[%emt 0:00:03]} Bg5+ {[%emt 0:00:35]} 40. f4 {[%emt 0:00:34]} Bf6 {[%emt 0:00:16]} 41. Bxf6 {[%emt 0:31:25]} Kxf6 {[%emt 0:30:04]} 42. Kd4 {[%emt 0:00:24]} Ke6 {[%emt 0:00:27]} 43. Kd3 {[%emt 0:00:00]} h5 {[%emt 0:00:00]} 44. h4 {[%emt 0:00:00]} Ke7 {[%emt 0:00:00]} 45. Ke3 {[%emt 0:00:00]} Ke6 {[%emt 0:00:00]} 1/2-1/2

[Event "DVM U14 2021"]
[Site "Willingen"]
[Date "2022.08.14"]
[Round "3"]
[White "Marcziter, Alex"]
[Black "Tietz, Bennit"]
[Result "1-0"]
[ECO "C58"]
[WhiteElo "1466"]
[BlackElo "1684"]
[Annotator "NA RC"]
[PlyCount "75"]
[EventDate "2022.08.12"]
[EventType "team-tourn"]
[EventRounds "7"]
[EventCountry "GER"]
[SourceTitle "playchess.com"]
[Source "ChessBase"]
[SourceQuality "1"]
[TimeControl "40/5400+30:1800+30"]

1. e4 {[%emt 0:00:07]} e5 {[%emt 0:00:00]} 2. Nf3 {[%emt 0:00:07]} Nc6 {[%emt 0:00:36]} 3. Bc4 {[%emt 0:00:10]} Nf6 {[%emt 0:00:51]} 4. Ng5 {[%emt 0:00:14]} d5 {[%emt 0:00:41]} 5. exd5 {[%emt 0:00:09]} Na5 {[%emt 0:00:40]} 6. Bb5+ {[%emt 0:00:14]} Bd7 {[%emt 0:01:00]} 7. Qe2 {[%emt 0:00:46]} Be7 {[%emt 0:04:08]} 8. Nc3 {[%emt 0:02:04]} Bxb5 {[%emt 0:01:10]} 9. Qxb5+ {[%emt 0:00:20]} c6 {[%emt 0:01:24]} 10. dxc6 {[%emt 0:00:13]} Nxc6 {[%emt 0:04:50]} 11. O-O {[%emt 0:00:30]} O-O {[%emt 0:03:49]} 12. Nge4 {[%emt 0:09:39]} Nxe4 {[%emt 0:00:39]} 13. Nxe4 {[%emt 0:00:28]} Nd4 {[%emt 0:05:36]} 14. Qd3 {[%emt 0:01:26]} f5 {[%emt 0:01:55]} 15. Ng3 {[%emt 0:00:47]} e4 {[%emt 0:01:29]} 16. Qc4+ {[%emt 0:02:36]} Kh8 {[%emt 0:03:38]} 17. Ne2 {[%emt 0:04:21]} Nc6 {[%emt 0:04:42]} 18. d4 {[%emt 0:02:23]} exd3 {[%emt 0:01:10]} 19. Qxd3 {[%emt 0:03:00]} Qb6 {[%emt 0:06:29]} 20. Qb3 {[%emt 0:02:34]} Qc7 {[%emt 0:02:39]} 21. Bf4 {[%emt 0:01:19]} Bd6 {[%emt 0:01:49]} 22. Bxd6 {[%emt 0:00:02]} Qxd6 {[%emt 0:01:13]} 23. Rad1 {[%emt 0:01:11]} Qe5 {[%emt 0:04:23]} 24. Rfe1 {[%emt 0:02:15]} Rad8 {[%emt 0:04:33]} 25. Nc3 {[%emt 0:04:00]} Rxd1 {[%emt 0:00:17]} 26. Rxd1 {[%emt 0:03:02]} Re8 {[%emt 0:03:41]} 27. h3 {[%emt 0:20:46]} h6 {[%emt 0:04:23]} 28. Qxb7 {[%emt 0:02:54]} Re6 {[%emt 0:06:46]} 29. Qd7 {[%emt 0:05:38]} Rg6 {[%emt 0:02:15]} 30. Qd5 {[%emt 0:08:14]} Qf4 {[%emt 0:03:32]} 31. Re1 {[%emt 0:09:09]} h5 {[%emt 0:04:48]} 32. g3 {[%emt 0:12:27]} Qd4 {[%emt 0:03:59]} 33. Qxf5 {[%emt 0:02:00]} Kh7 {[%emt 0:02:03]} 34. Re6 {[%emt 0:01:31]} Ne7 {[%emt 0:00:39]} 35. Rxe7 {[%emt 0:00:17]} Kh6 {[%emt 0:00:43]} 36. Re6 {[%emt 0:00:48]} Rxe6 37. Qxe6+ {[%emt 3:20:45]} Kh7 {[%emt 0:00:37]} 38. Qe4+ {[%emt 0:00:11]} 1-0

[Event "DVM U14 2021"]
[Site "Willingen"]
[Date "2022.08.14"]
[Round "3"]
[White "Finck, Jonathan"]
[Black "Le, Dinh An"]
[Result "1/2-1/2"]
[ECO "B23"]
[WhiteElo "1424"]
[BlackElo "1470"]
[Annotator "NA RC"]
[PlyCount "103"]
[EventDate "2022.08.12"]
[EventType "team-tourn"]
[EventRounds "7"]
[EventCountry "GER"]
[SourceTitle "playchess.com"]
[Source "ChessBase"]
[SourceQuality "1"]
[TimeControl "40/5400+30:1800+30"]

1. e4 {[%emt 0:00:11]} e6 {[%emt 0:00:00]} 2. Nc3 {[%emt 0:00:15]} d5 {[%emt 0:00:09]} 3. g3 {[%emt 0:02:32]} Be7 {[%emt 0:00:38]} 4. Bg2 {[%emt 0:00:57]} Nf6 {[%emt 0:01:42]} 5. d3 {[%emt 0:02:13]} c5 {[%emt 0:02:24]} 6. Qe2 {[%emt 0:01:10]} Nc6 {[%emt 0:00:50]} 7. Nf3 {[%emt 0:01:22]} d4 {[%emt 0:00:29]} 8. Nd1 {[%emt 0:03:52]} b5 {[%emt 0:00:55]} 9. O-O {[%emt 0:01:19]} Qc7 {[%emt 0:01:12]} 10. c3 {[%emt 0:02:02]} e5 {[%emt 0:03:16]} 11. Nd2 {[%emt 0:01:24]} Ba6 {[%emt 0:00:39]} 12. b3 {[%emt 0:03:24]} Rb8 {[%emt 0:01:57]} 13. c4 {[%emt 0:01:00]} O-O {[%emt 0:01:58]} 14. Nb2 {[%emt 0:02:13]} Rfd8 {[%emt 0:06:24]} 15. Nf3 {[%emt 0:02:36]} b4 {[%emt 0:00:54]} 16. Nh4 {[%emt 0:00:50]} Bc8 {[%emt 0:01:36]} 17. f4 {[%emt 0:04:10]} Ng4 {[%emt 0:01:56]} 18. f5 {[%emt 0:02:06]} Bxh4 {[%emt 0:01:10]} 19. Qxg4 {[%emt 0:00:32]} Bf6 {[%emt 0:01:29]} 20. h4 {[%emt 0:02:28]} Kh8 {[%emt 0:02:12]} 21. h5 {[%emt 0:01:20]} h6 {[%emt 0:00:37]} 22. Qh3 {[%emt 0:00:58]} Qe7 {[%emt 0:01:00]} 23. g4 {[%emt 0:00:25]} Bg5 {[%emt 0:01:34]} 24. Nd1 {[%emt 0:01:02]} Bxc1 {[%emt 0:00:15]} 25. Rxc1 {[%emt 0:00:59]} Qg5 {[%emt 0:01:27]} 26. Rc2 {[%emt 0:00:36]} Rd6 {[%emt 0:02:13]} 27. Qg3 {[%emt 0:01:11]} Bd7 {[%emt 0:02:20]} 28. Kf2 {[%emt 0:00:54]} Re8 {[%emt 0:00:27]} 29. Rh1 {[%emt 0:01:08]} Qd8 {[%emt 0:00:30]} 30. Qh4 {[%emt 0:00:19]} f6 {[%emt 0:03:45]} 31. Ke2 {[%emt 0:00:19]} Qa5 {[%emt 0:00:50]} 32. Nf2 {[%emt 0:00:39]} Qd8 {[%emt 0:00:48]} 33. Nh3 {[%emt 0:01:09]} Rf8 {[%emt 0:00:48]} 34. Ng1 {[%emt 0:00:34]} Ne7 {[%emt 0:01:01]} 35. Nf3 {[%emt 0:00:18]} Ng8 {[%emt 0:00:18]} 36. Qg3 {[%emt 0:01:24]} Re8 {[%emt 0:00:10]} 37. Nh4 {[%emt 0:00:37]} Kh7 {[%emt 0:03:09]} 38. Ng6 {[%emt 0:00:20]} Ra6 {[%emt 0:00:38]} 39. Ra1 {[%emt 0:00:55]} Qc7 {[%emt 0:01:04]} 40. Qe1 {[%emt 0:00:53]} Ra3 {[%emt 0:02:16]} 41. Nh4 {[%emt 0:31:05]} Re7 {[%emt 0:30:56]} 42. Nf3 {[%emt 0:00:49]} Re8 {[%emt 0:00:16]} 43. Nd2 {[%emt 0:00:24]} Rb8 {[%emt 0:00:35]} 44. Rb2 {[%emt 0:01:06]} Ra5 {[%emt 0:00:15]} 45. Nb1 {[%emt 0:01:04]} Qc6 {[%emt 0:02:58]} 46. a3 {[%emt 0:07:49]} Qc7 {[%emt 0:02:58]} 47. a4 {[%emt 0:02:55]} Qd8 {[%emt 0:00:24]} 48. Bf1 {[%emt 0:00:24]} Qc7 {[%emt 0:00:07]} 49. Qd1 {[%emt 0:00:08]} Qd8 {[%emt 0:00:05]} 50. Ke1 {[%emt 0:00:07]} Ne7 {[%emt 0:00:06]} 51. Rh2 {[%emt 0:00:09]} Ng8 {[%emt 0:00:05]} 52. Rh1 {[%emt 2:15:46]} 1/2-1/2

[Event "DVM U14 2021"]
[Site "Willingen"]
[Date "2022.08.14"]
[Round "3"]
[White "Rudolph, Alexander"]
[Black "Jones, Richard S."]
[Result "1-0"]
[ECO "C54"]
[WhiteElo "1417"]
[BlackElo "2394"]
[Annotator "TA"]
[PlyCount "82"]
[EventDate "2022.08.12"]
[EventType "team-tourn"]
[EventRounds "7"]
[EventCountry "GER"]
[SourceTitle "playchess.com"]
[Source "ChessBase"]
[SourceQuality "1"]
[TimeControl "40/5400+30:1800+30"]

{[%evp 14,82,31,39,53,19,45,0,0,0,10,6,29,14,10,-8,-12,-11,0,-27,-25,-112,15,-57,-69,-61,-64,-177,-124,-584,-504,-519,-518,-518,-508,-597,-603,-577,-592,-570,-579,-611,-627,-628,-631,-625,-618,-723,-737,-697,-622,-1150,-1153,-1187,-1171,-1131,-883,-888,-141,-135,143,159,244,260,721,268,648,466,628,631,2199]} 1. e4 {[%emt 0:00:30]} e5 {[%emt 0:00:04]} 2. Nf3 {[%emt 0:01:00]} Nc6 {[%emt 0:00:06]} 3. Bc4 {[%emt 0:00:59]} Bc5 {[%emt 0:00:06]} 4. d3 {[%emt 0:00:30]} d6 {[%emt 0:01:42]} 5. Nbd2 {[%emt 0:00:37]} Nf6 {[%emt 0:00:34]} 6. c3 {[%emt 0:00:11]} Bg4 {[%emt 0:02:29]} 7. O-O {[%emt 0:01:49]} O-O {[%emt 0:00:26]} 8. h3 {[%emt 0:00:07]} Be6 {[%emt 0:00:23] C54: Giuoco Piano: 4 c3 Nf6, main lines with 5 d4 and 5 d3.} 9. Re1 {[%emt 0:00:35]} Re8 {[%emt 0:07:45] [#]} 10. Nf1 $146 {[%emt 0:02:02]} ({Predecessor:} 10. Bb5 Bd7 11. Nf1 h6 12. Ng3 a6 13. Ba4 Ne7 14. Bxd7 Qxd7 15. Nh4 Qe6 16. Qf3 Nh7 17. Nhf5 Nxf5 18. exf5 Qc8 19. Ne4 f6 20. h4 {½-½ (20) Semkoff,A (2103)-Maisch,F (2174) Dresden 2000}) 10... Bxc4 {[%emt 0:01:47] The position is equal.} (10... Nxe4 {with more complications.} 11. Bxe6 Bxf2+ 12. Kh2 Bxe1 13. dxe4 fxe6 14. Qxe1 b6) 11. dxc4 {[%emt 0:00:09]} h6 {[%emt 0:00:24]} 12. Ng3 {[%emt 0:01:27]} a6 {[%emt 0:03:31]} (12... a5 {is more complex.} 13. Nh4 Kh7 14. Nhf5 Ne7) 13. Bd2 {[%emt 0:02:04]} Qd7 {[%emt 0:02:48]} 14. Qc1 {[%emt 0:00:48]} Qe6 {[%emt 0:06:21]} 15. b3 {[%emt 0:05:23]} Ne7 {[%emt 0:05:51]} 16. Nh4 {[%emt 0:01:37]} Kh7 {[%emt 0:08:36]} 17. Nhf5 {[%emt 0:02:28] [#]} (17. a4 $11 {keeps the balance.}) 17... Nfg8 {[%emt 0:02:25]} (17... Nxe4 $1 $17 {[%mdl 512]} 18. Nxe4 (18. Nd4 Bxd4) 18... Nxf5 19. Nxc5 dxc5) 18. b4 {[%emt 0:03:11]} (18. Qc2 $11) 18... Ba7 $15 {[%emt 0:01:47]} 19. c5 {[%emt 0:01:25]} dxc5 {[%emt 0:01:30]} 20. Re3 {[%emt 0:00:09]} (20. Be3 $15) 20... g6 {[%emt 0:08:23]} ({Black should try} 20... cxb4 $19 21. Rf3 Nxf5 22. exf5 Qd5 23. cxb4 Bd4) 21. Nh5 $2 {[%emt 0:07:07][%mdl 8192]} gxh5 {[%emt 0:09:50]} 22. Rf3 {[%emt 0:02:09]} Nxf5 {[%emt 0:02:28]} 23. Rxf5 {[%emt 0:00:27]} Qg6 {[%emt 0:01:42]} 24. Qc2 {[%emt 0:01:19]} Ne7 {[%emt 0:01:06]} 25. Rf3 {[%emt 0:00:20]} Rg8 {[%emt 0:00:28][%csl Gg8][%cal Rg6g2]} 26. Rg3 {[%emt 0:00:14]} Qe6 {[%emt 0:01:21]} 27. Rf3 {[%emt 0:01:23]} cxb4 {[%emt 0:00:40]} 28. cxb4 {[%emt 0:00:35]} Qg6 {[%emt 0:00:21][%csl Gg8][%cal Rg6g2]} 29. g3 {[%emt 0:00:15]} h4 {[%emt 0:03:04][%cal Rh4g3]} 30. g4 {[%emt 0:00:08]} h5 {[%emt 0:01:17]} 31. g5 {[%emt 0:00:33]} Rad8 {[%emt 0:04:17]} 32. Bc1 {[%emt 0:00:35]} Nc6 {[%emt 0:01:02]} 33. Qc4 {[%emt 0:00:30]} Rg7 {[%emt 0:02:23]} 34. Kh2 {[%emt 0:00:11]} Rd4 {[%emt 0:08:07]} 35. Qf1 {[%emt 0:00:28]} Rxe4 $2 {[%emt 0:01:51]} (35... Qxe4 $19 {is more deadly.} 36. Qg2 Rd1) 36. Rf6 $17 {[%emt 0:00:23] [#]} Re1 $2 {[%emt 0:03:01][%mdl 8192]} 37. Qxe1 $16 {[%emt 0:02:33]} Qc2 {[%emt 0:00:19] [#]} (37... Qd3 $16) 38. Be3 $1 $18 {[%emt 0:02:57]} Nd4 $2 {[%emt 0:04:45]} (38... Bxe3 39. Qxe3 Kg8) 39. Qd1 $2 {[%emt 0:03:14]} (39. Bxd4 Bxd4 40. Rc1 Bxf2 41. Rxf2 (41. Rxc2 Bxe1 42. Rxc7 Rxg5 $18)) 39... Qe4 {[%emt 0:01:31]} (39... Qxd1 40. Rxd1 Bb6) 40. Qxh5+ {[%emt 0:01:08]} Kg8 {[%emt 0:01:15]} 41. Rg1 {[%emt 0:32:11] Bxd4 is the strong threat.} Ne2 {[%emt 0:02:44] Weighted Error Value: White=0.61/Black=0.18 (very precise)} 1-0

[Event "DVM U14 2021"]
[Site "Willingen"]
[Date "2022.08.14"]
[Round "3"]
[White "Yue, Qihang"]
[Black "Lipinsky, Pierre"]
[Result "1-0"]
[ECO "D10"]
[WhiteElo "1401"]
[BlackElo "1560"]
[Annotator "NA RC"]
[PlyCount "37"]
[EventDate "2022.08.12"]
[EventType "team-tourn"]
[EventRounds "7"]
[EventCountry "GER"]
[SourceTitle "playchess.com"]
[Source "ChessBase"]
[SourceQuality "1"]
[TimeControl "40/5400+30:1800+30"]

1. d4 {[%emt 0:00:01]} d5 {[%emt 0:00:00]} 2. c4 {[%emt 0:00:05]} c6 {[%emt 0:00:00]} 3. cxd5 {[%emt 0:00:09]} cxd5 {[%emt 0:00:09]} 4. Bf4 {[%emt 0:00:08]} Nf6 {[%emt 0:00:31]} 5. e3 {[%emt 0:00:12]} Nc6 {[%emt 0:00:11]} 6. Nc3 {[%emt 0:00:11]} Bf5 {[%emt 0:01:06]} 7. Be2 {[%emt 0:00:12]} e6 {[%emt 0:02:39]} 8. Qb3 {[%emt 0:01:32]} Qd7 {[%emt 0:05:26]} 9. Nf3 {[%emt 0:03:49]} a6 {[%emt 0:10:18]} 10. O-O {[%emt 0:01:05]} Be7 {[%emt 0:00:49]} 11. Na4 {[%emt 0:07:10]} Na5 {[%emt 0:02:02]} 12. Qd1 {[%emt 0:04:36]} Qd8 {[%emt 0:05:15]} 13. Rc1 {[%emt 0:03:28]} Bd6 {[%emt 0:08:23]} 14. Bxd6 {[%emt 0:01:27]} Qxd6 {[%emt 0:01:03]} 15. Nc5 {[%emt 0:06:31]} Rb8 {[%emt 0:00:56]} 16. Qa4+ {[%emt 0:00:07]} Nc6 {[%emt 0:01:16]} 17. Nxa6 {[%emt 0:03:34]} bxa6 {[%emt 0:01:55]} 18. Rxc6 {[%emt 0:00:27]} Qd7 {[%emt 0:01:32]} 19. Ne5 1-0

[Event "DVM U14 2021"]
[Site "Willingen"]
[Date "2022.08.14"]
[Round "3"]
[White "Tran, Anh Duc Kevin"]
[Black "Liu, Leon"]
[Result "0-1"]
[ECO "B18"]
[WhiteElo "1398"]
[BlackElo "1256"]
[Annotator "NA RC"]
[PlyCount "132"]
[EventDate "2022.08.12"]
[EventType "team-tourn"]
[EventRounds "7"]
[EventCountry "GER"]
[SourceTitle "playchess.com"]
[Source "ChessBase"]
[SourceQuality "1"]
[TimeControl "40/5400+30:1800+30"]

1. e4 {[%emt 0:00:11]} c6 {[%emt 0:00:02]} 2. d4 {[%emt 0:00:04]} d5 {[%emt 0:00:11]} 3. Nc3 {[%emt 0:00:26]} dxe4 {[%emt 0:00:42]} 4. Nxe4 {[%emt 0:00:51]} Bf5 {[%emt 0:00:48]} 5. Ng3 {[%emt 0:00:17]} Bg6 {[%emt 0:00:52]} 6. Nf3 {[%emt 0:00:08]} Nd7 {[%emt 0:02:06]} 7. c4 {[%emt 0:01:22]} e6 {[%emt 0:01:37]} 8. a3 {[%emt 0:03:30]} Ngf6 {[%emt 0:02:45]} 9. Bd3 {[%emt 0:03:18]} Bxd3 {[%emt 0:00:26]} 10. Qxd3 {[%emt 0:03:57]} Be7 {[%emt 0:00:55]} 11. Bf4 {[%emt 0:07:12]} Qa5+ {[%emt 0:01:19]} 12. Bd2 {[%emt 0:00:19]} Qc7 {[%emt 0:00:47]} 13. O-O {[%emt 0:00:09]} O-O {[%emt 0:07:06]} 14. Rfe1 {[%emt 0:03:54]} Rad8 {[%emt 0:01:41]} 15. Rac1 {[%emt 0:05:15]} Rfe8 {[%emt 0:06:53]} 16. b4 {[%emt 0:00:37]} c5 {[%emt 0:06:48]} 17. dxc5 {[%emt 0:00:49]} Nxc5 {[%emt 0:10:34]} 18. Qc2 {[%emt 0:00:57]} Nd3 {[%emt 0:06:27]} 19. Ng5 {[%emt 0:03:30]} Nxc1 {[%emt 0:00:50]} 20. Rxc1 {[%emt 0:03:43]} h6 {[%emt 0:01:23]} 21. Nf3 {[%emt 0:02:18]} Bd6 {[%emt 0:04:17]} 22. Ne2 {[%emt 0:02:06]} e5 {[%emt 0:00:54]} 23. c5 {[%emt 0:01:46]} Rc8 {[%emt 0:03:31]} 24. Qa4 {[%emt 0:01:29]} Be7 {[%emt 0:06:02]} 25. h3 {[%emt 0:01:22]} Red8 {[%emt 0:02:01]} 26. Bc3 {[%emt 0:02:02]} e4 {[%emt 0:01:15]} 27. Nfd4 {[%emt 0:01:33]} Nd5 {[%emt 0:05:08]} 28. Bb2 {[%emt 0:02:03]} Bf6 {[%emt 0:04:30]} 29. Qb3 {[%emt 0:09:18]} Nf4 {[%emt 0:07:08]} 30. Nxf4 {[%emt 0:05:23]} Qxf4 {[%emt 0:03:38]} 31. Ne2 {[%emt 0:01:22]} Qd2 {[%emt 0:05:12]} 32. Bxf6 {[%emt 0:00:17]} gxf6 {[%emt 0:02:30]} 33. Rc2 {[%emt 0:00:57]} Qd1+ {[%emt 0:00:07]} 34. Kh2 {[%emt 0:00:10]} Rd2 {[%emt 0:00:50]} 35. Qg3+ {[%emt 0:01:40]} Kf8 {[%emt 0:01:55]} 36. Rxd2 {[%emt 0:00:38]} Qxd2 {[%emt 0:03:33]} 37. Qd6+ {[%emt 0:00:29]} Qxd6+ {[%emt 0:00:05]} 38. cxd6 {[%emt 0:00:13]} Rd8 {[%emt 0:00:22]} 39. Nc3 {[%emt 0:00:24]} e3 {[%emt 0:00:16]} 40. fxe3 {[%emt 0:00:07]} Rxd6 {[%emt 0:01:06]} 41. Nb5 {[%emt 0:30:21]} Rd3 {[%emt 0:31:14]} 42. Nxa7 {[%emt 0:00:10]} Rxa3 {[%emt 0:00:53]} 43. Nb5 {[%emt 0:00:07]} Rxe3 {[%emt 0:00:43]} 44. Nd6 {[%emt 0:00:47]} b6 {[%emt 0:00:00]} 45. b5 {[%emt 0:00:00]} Rb3 {[%emt 0:00:00]} 46. h4 {[%emt 0:00:00]} Rb4 {[%emt 0:00:00]} 47. Kg3 {[%emt 0:00:00]} Rd4 {[%emt 0:00:00]} 48. Nf5 {[%emt 0:00:00]} Rd5 {[%emt 0:00:00]} 49. Nxh6 {[%emt 0:00:00]} Rxb5 {[%emt 0:00:00]} 50. Ng4 {[%emt 0:00:00]} f5 {[%emt 0:00:00]} 51. Ne3 {[%emt 0:00:00]} Rb3 {[%emt 0:00:00]} 52. Kf4 {[%emt 0:00:00]} Rxe3 {[%emt 0:00:00]} 53. Kxe3 {[%emt 0:00:00]} b5 {[%emt 0:00:00]} 54. Kd4 {[%emt 0:00:00]} Kg7 {[%emt 0:00:00]} 55. Kc5 {[%emt 0:00:00]} Kh6 {[%emt 0:00:00]} 56. Kxb5 {[%emt 0:00:00]} Kh5 {[%emt 0:00:00]} 57. Kc4 {[%emt 0:00:00]} Kxh4 {[%emt 0:00:00]} 58. Kd4 {[%emt 0:00:00]} Kg5 {[%emt 0:00:00]} 59. Ke3 {[%emt 0:00:00]} Kg4 {[%emt 0:00:00]} 60. Kf2 {[%emt 0:00:00]} Kf4 {[%emt 0:00:00]} 61. g3+ {[%emt 0:00:00]} Ke4 {[%emt 0:00:00]} 62. Ke2 {[%emt 0:00:00]} f4 {[%emt 0:00:00]} 63. gxf4 {[%emt 0:00:00]} Kxf4 {[%emt 0:00:00]} 64. Kf2 {[%emt 0:00:00]} f5 {[%emt 0:00:00]} 65. Kf1 {[%emt 0:00:00]} Kf3 {[%emt 0:00:00]} 66. Kg1 {[%emt 0:00:00]} Ke2 {[%emt 0:00:00]} 0-1